fUST/lending_fUST_20251019
["ID","MTS","AMOUNT","RATE_DAILY","PERIOD"]
[391822638,1760884239384,-313.44421068,0.00036689,2]
[391822639,1760884239392,-568.0,0.00036723,7]
[391822640,1760884239401,-168.0,0.00036787,7]
[391822641,1760884239412,-435.28,0.000368,2]
[391822642,1760884239421,-3700.01,0.000368,14]
[391822643,1760884239431,-168.0,0.00036811,7]
[391822644,1760884239440,-4054.93995051,0.00036835,2]
[391822645,1760884239449,-568.0,0.00036843,120]
[391822646,1760884239458,-3955.76579345,0.00037,2]
[391822647,1760884239469,-9548.13371264,0.0003706,3]
[391822648,1760884239478,-1999.0,0.0003707,120]
[391822649,1760884239487,-76385.0697011,0.0003707,3]
[391822650,1760884239496,-151.0,0.0003708,120]
[391822651,1760884239505,-286.856025,0.0003708,120]
[391822652,1760884239515,-151.36772251,0.0003708,120]
[391822653,1760884239524,-151.0,0.0003708,2]
[391822654,1760884239534,-151.0,0.0003708,120]
[391822655,1760884239543,-370000.0,0.0003708,2]
[391822656,1760884239552,-168.0,0.00037084,2]
[391822657,1760884239561,-168.0,0.0003721,2]
[391822658,1760884239571,-168.0,0.00037215,2]
[391822659,1760884239580,-2000.0,0.000374,120]
[391822660,1760884239589,-497.566,0.000374,120]
[391822661,1760884239599,-619.7523152,0.00037417,15]
[391822662,1760884239608,-362.65182219,0.00037535,2]
[391822663,1760884239617,-168.0,0.0003801,120]
[391822664,1760884239627,-1999.0,0.00038166,120]
[391822665,1760884239636,-568.0,0.00038181,2]
[391822666,1760884239645,-500.0,0.00038242,2]
[391822667,1760884239655,-500.0,0.00038356,30]
[391822668,1760884239665,-500.0,0.00038356,30]
[391822669,1760884239675,-500.0,0.00038356,30]
[391822670,1760884239684,-500.0,0.00038356,30]
[391822671,1760884239693,-500.0,0.00038356,7]
[391822672,1760884239702,-500.0,0.00038356,30]
[391822673,1760884239713,-500.0,0.00038356,30]
[391822674,1760884239722,-500.0,0.00038356,30]
[391822675,1760884239732,-500.0,0.00038356,30]
[391822676,1760884239742,-500.0,0.00038356,30]
[391822677,1760884239756,-500.0,0.00038356,30]
[391822678,1760884239765,-500.0,0.00038356,30]
[391822679,1760884239775,-500.0,0.00038356,30]
[391822680,1760884239785,-606.18808906,0.00038356,30]
[391822681,1760884239795,-1451.13,0.00038356,30]
[391822682,1760884239804,-1451.13,0.00038356,30]
[391822683,1760884239814,-1451.13,0.00038356,30]
[391822684,1760884239826,-1451.13,0.00038356,30]
[391822685,1760884239836,-1451.13,0.00038356,30]
[391822686,1760884239845,-1451.13,0.00038356,30]
[391822687,1760884239854,-1451.13,0.00038356,30]
[391822688,1760884239863,-1451.13,0.00038356,30]
[391822689,1760884239873,-1451.13,0.00038356,30]
[391822690,1760884239882,-1451.13,0.00038356,30]
[391822691,1760884239892,-1451.13,0.00038356,30]
[391822692,1760884239901,-1451.13,0.00038356,30]
[391822693,1760884239910,-1451.13,0.00038356,30]
[391822694,1760884239920,-1451.13,0.00038356,30]
[391822695,1760884239929,-1451.13,0.00038356,30]
[391822696,1760884239938,-1451.13,0.00038356,30]
[391822697,1760884239948,-1451.13,0.00038356,30]
[391822698,1760884239957,-1451.13,0.00038356,30]
[391822699,1760884239968,-1451.13,0.00038356,30]
[391822700,1760884239978,-1451.13,0.00038356,30]
[391822701,1760884239987,-1451.13,0.00038356,30]
[391822702,1760884239997,-1451.13,0.00038356,30]
[391822703,1760884240006,-1451.13,0.00038356,30]
[391822704,1760884240016,-1451.32,0.00038356,30]
[391822705,1760884240026,-500.0,0.00038356,30]
[391822706,1760884240036,-500.0,0.00038356,30]
[391822707,1760884240045,-500.0,0.00038356,30]
[391822708,1760884240055,-500.0,0.00038356,30]
[391822709,1760884240064,-500.0,0.00038356,30]
[391822710,1760884240073,-258.46552305,0.00038356,30]
[391822711,1760884240083,-500.0,0.00038356,30]
[391822712,1760884240094,-247.35350592,0.00038356,30]
[391822713,1760884240104,-500.0,0.00038356,30]
[391822714,1760884240114,-500.0,0.00038356,30]
[391822715,1760884240123,-500.0,0.00038356,30]
[391822716,1760884240132,-500.0,0.00038356,30]
[391822717,1760884240141,-750.6,0.00038356,30]
[391822718,1760884240151,-750.6,0.00038356,30]
[391822719,1760884240161,-750.6,0.00038356,30]
[391822720,1760884240171,-750.6,0.00038356,30]
[391822721,1760884240180,-750.6,0.00038356,30]
[391822722,1760884240189,-750.6,0.00038356,30]
[391822723,1760884240199,-750.6,0.00038356,30]
[391822724,1760884240208,-750.6,0.00038356,30]
[391822725,1760884240220,-750.6,0.00038356,30]
[391822726,1760884240230,-750.6,0.00038356,30]
[391822727,1760884240239,-750.6,0.00038356,30]
[391822728,1760884240249,-750.6,0.00038356,30]
[391822729,1760884240258,-750.6,0.00038356,30]
[391822730,1760884240268,-750.6,0.00038356,30]
[391822731,1760884240277,-750.6,0.00038356,30]
[391822732,1760884240286,-750.6,0.00038356,30]
[391822733,1760884240295,-750.6,0.00038356,30]
[391822734,1760884240306,-750.6,0.00038356,30]
[391822735,1760884240315,-750.6,0.00038356,30]
[391822736,1760884240325,-750.6,0.00038356,30]
[391822737,1760884240334,-750.6,0.00038356,30]
[391822739,1760884240343,-750.6,0.00038356,30]
[391822741,1760884240353,-750.6,0.00038356,30]
[391822743,1760884240363,-750.6,0.00038356,30]
[391822745,1760884240372,-194.13823177,0.00038356,30]
[391822747,1760884240381,-150.0,0.00038396,7]
[391822749,1760884240391,-168.0,0.0003844,2]
[391822751,1760884240400,-10827.95988498,0.0003861,4]
[391822753,1760884240410,-168.0,0.00038646,7]
[391822755,1760884240419,-2377.14,0.00038684,2]
[391822756,1760884240428,-501.0226827,0.0003879,2]
[391822758,1760884240438,-199.0,0.0003887,50]
[391822760,1760884240447,-9548.13371264,0.00038907,3]
[391822762,1760884240456,-330.0,0.00038917,14]
[391822764,1760884240467,-163.0,0.00038917,14]
[391822766,1760884240476,-330.0,0.00038917,14]
[391822767,1760884240486,-163.0,0.00038917,14]
[391822769,1760884240495,-330.0,0.00038917,14]
[391822771,1760884240504,-178.94658419,0.00038917,14]
[391822773,1760884240514,-330.0,0.00038917,14]
[391822775,1760884240523,-330.0,0.00038917,14]
[391822776,1760884240533,-330.0,0.00038917,14]
[391822783,1760884240628,-330.0,0.00038917,14]
[391822784,1760884240638,-330.0,0.00038917,14]
[391822785,1760884240647,-330.0,0.00038917,14]
[391822786,1760884240657,-330.0,0.00038917,14]
[391822787,1760884240666,-330.0,0.00038917,14]
[391822788,1760884240675,-330.0,0.00038917,14]
[391822789,1760884240684,-330.0,0.00038917,14]
[391822790,1760884240694,-330.0,0.00038917,14]
[391822791,1760884240703,-330.0,0.00038917,14]
[391822792,1760884240712,-330.0,0.00038917,14]
[391822793,1760884240722,-330.0,0.00038917,14]
[391822794,1760884240732,-330.0,0.00038917,14]
[391822795,1760884240741,-330.0,0.00038917,14]
[391822796,1760884240751,-330.0,0.00038917,14]
[391822797,1760884240764,-330.0,0.00038917,14]
[391822798,1760884240773,-330.0,0.00038917,14]
[391822799,1760884240783,-330.0,0.00038917,14]
[391822800,1760884240792,-330.0,0.00038917,14]
[391822801,1760884240803,-330.0,0.00038917,14]
[391822802,1760884240812,-330.0,0.00038917,14]
[391822803,1760884240821,-330.0,0.00038917,14]
[391822804,1760884240832,-284.07106432,0.00038917,14]
[391822805,1760884240841,-172.17977529,0.00038917,14]
[391822806,1760884240851,-5374.99994523,0.00039,120]
[391822807,1760884240862,-809.17930869,0.00039171,7]
[391822808,1760884240871,-500.0,0.00039178,7]
[391822809,1760884240880,-10000.0,0.000392,120]
[391822810,1760884240890,-10000.0,0.000392,120]
[391822811,1760884240899,-800.0,0.00039241,7]
[391822812,1760884240908,-1999.0,0.00039261,120]
[391822813,1760884240918,-151.0,0.00039323,3]
[391822814,1760884240928,-151.0,0.00039323,3]
[391822815,1760884240937,-165.02581476,0.00039323,3]
[391822816,1760884240947,-151.0,0.00039323,3]
[391822817,1760884240956,-151.0,0.00039323,3]
[391822818,1760884240966,-154.09359071,0.00039323,3]
[391822819,1760884240975,-500.0,0.00039323,3]
[391822820,1760884240984,-151.0,0.00039323,3]
[391822821,1760884240994,-200.0,0.00039343,7]
[391822822,1760884241004,-9064.12784445,0.00039344,2]
[391822823,1760884241014,-535.80006847,0.00039344,2]
[391822824,1760884241024,-800.0,0.0003935,7]
[391822825,1760884241034,-168.0,0.00039352,2]
[391822826,1760884241044,-800.0,0.00039374,7]
[391822827,1760884241054,-151.0,0.00039378,3]
[391822828,1760884241064,-151.0,0.00039378,3]
[391822829,1760884241074,-500.0,0.00039378,3]
[391822830,1760884241083,-198.19651247,0.00039378,3]
[391822831,1760884241092,-168.138283,0.00039389,2]
[391822832,1760884241102,-800.78977952,0.0003939,7]
[391822833,1760884241111,-151.0,0.00039424,2]
[391822834,1760884241120,-9548.13371264,0.00039424,3]
[391822835,1760884241132,-151.0,0.00039433,3]
[391822836,1760884241141,-151.0,0.00039433,3]
[391822837,1760884241150,-500.0,0.00039433,3]
[391822838,1760884241159,-151.0,0.00039434,120]
[391822839,1760884241168,-151.898794,0.00039434,30]
[391822840,1760884241178,-151.0,0.00039434,120]
[391822841,1760884241187,-151.0,0.00039434,120]
[391822842,1760884241198,-151.0,0.00039434,120]
[391822843,1760884241207,-13423.02629081,0.00039434,3]
[391822863,1760884243706,-171.02897842,0.00026902,2]
[391822864,1760884243718,-72510.17712299,0.00039434,3]
[391822865,1760884243728,-202.86660763,0.00039443,30]
[391822866,1760884243738,-514.84070869,0.00039443,7]
[391822867,1760884243747,-1527.63191913,0.00039443,7]
[391822876,1760884246947,-2654.67958732,0.00039443,7]
[391822877,1760884246956,-301.94445769,0.00039443,7]
[391822878,1760884246966,-157.37156182,0.00039443,7]
[391822941,1760884378922,150.0,0.00022569,2]
[391822942,1760884462052,157.77,0.00022471,2]
[391822943,1760884542670,155.76,0.00021921,2]
[391822944,1760884543217,311.53,0.00023914,2]
[391822945,1760884623596,150.0,0.00021913,2]
[391822946,1760884624058,299.63,0.00023905,2]
[391822951,1760884703990,150.0,0.00021932,2]
[391822952,1760884704434,288.19,0.00023926,2]
[391822953,1760884784352,150.0,0.00021925,2]
[391822954,1760884784773,277.03,0.00023919,2]
[391822955,1760884864943,150.0,0.00021923,2]
[391822956,1760884865398,266.16,0.00023916,2]
[391822957,1760884899164,417.15472785,0.00024142,2]
[391822958,1760884946415,150.0,0.00021925,2]
[391822959,1760884946927,255.57,0.00023918,2]
[391822960,1760885026561,150.0,0.00022281,2]
[391822961,1760885036355,181.626505,0.00013699,2]
[391822962,1760885036572,181.626505,0.00020187,2]
[391822964,1760885086635,289.30205532,0.00024142,2]
[391822965,1760885107585,150.0,0.00021916,2]
[391822966,1760885108046,241.43,0.00023909,2]
[391822967,1760885187821,150.0,0.00021911,2]
[391822968,1760885188278,231.47,0.00023902,2]
[391822969,1760885266376,150.0,0.00021916,2]
[391822970,1760885266835,221.76,0.00023909,2]
[391822971,1760885345747,150.0,0.00021954,2]
[391822972,1760885346168,212.29,0.0002395,2]
[391822973,1760885413525,536.0,0.00024,2]
[391822977,1760885425306,150.0,0.00021962,2]
[391822978,1760885425731,203.07,0.00023959,2]
[391823170,1760885437729,1304.565,0.00029041,120]
[391823171,1760885437870,-1575.9,0.00024414,2]
[391823176,1760885439964,-541.1,0.00024414,2]
[391823200,1760885503947,162.48,0.00021926,2]
[391823201,1760885504371,324.96,0.00023919,2]
[391823211,1760885582047,156.27,0.00022284,2]
[391823212,1760885663384,154.29,0.00021919,2]
[391823213,1760885663823,308.57,0.00023911,2]
[391823221,1760885731159,308.9928497,0.00024142,2]
[391823222,1760885743194,150.0,0.00021924,2]
[391823223,1760885743623,296.79,0.00023917,2]
[391823224,1760885822429,150.0,0.00021917,2]
[391823225,1760885822854,285.42,0.0002391,2]
[391823226,1760885902651,150.0,0.00021922,2]
[391823227,1760885903148,274.33,0.00023915,2]
[391823228,1760885981834,150.0,0.00021924,2]
[391823229,1760885982284,263.53,0.00023917,2]
[391823230,1760886060366,150.0,0.00021923,2]
[391823231,1760886060836,253.01,0.00023916,2]
[391823232,1760886140815,150.0,0.00021918,2]
[391823233,1760886141228,242.75,0.00023911,2]
[391823234,1760886141811,1410.73860503,0.00018434,2]
[391823235,1760886142149,1410.73860503,0.00018838,2]
[391823236,1760886142461,1410.73860503,0.00019149,2]
[391823237,1760886142776,1410.73860503,0.00019223,2]
[391823238,1760886143115,425.66273018,0.00019659,2]
[391823239,1760886143138,985.07587485,0.00019659,2]
[391823240,1760886143455,1410.73860503,0.00019803,2]
[391823241,1760886143810,1410.73860503,0.00020263,2]
[391823242,1760886144144,1410.73860503,0.00020478,2]
[391823243,1760886144497,1410.73860503,0.00020586,2]
[391823244,1760886144862,1410.73860503,0.0002106,2]
[391823245,1760886145185,1410.73860503,0.00021128,2]
[391823246,1760886145483,1410.73860503,0.00021446,2]
[391823247,1760886145792,1410.73860503,0.00021869,2]
[391823248,1760886146121,1410.73860503,0.00022056,2]
[391823249,1760886146464,1410.73860503,0.00022434,2]
[391823250,1760886146769,1410.73860503,0.00022673,2]
[391823251,1760886147138,1410.73860503,0.00022856,2]
[391823252,1760886147675,1410.73860503,0.00023193,2]
[391823253,1760886148010,124.83976479,0.00023339,2]
[391823254,1760886148033,1285.89884024,0.00023339,2]
[391823255,1760886148347,1410.73860503,0.00023588,2]
[391823256,1760886148717,1410.73860503,0.00024083,2]
[391823259,1760886220462,150.0,0.00022285,2]
[391823262,1760886299652,150.0,0.00021919,2]
[391823263,1760886300067,228.93,0.00023912,2]
[391823264,1760886365740,156.80778272,0.00024116,2]
[391823265,1760886378461,150.0,0.00021929,2]
[391823266,1760886378979,219.29,0.00023923,2]
[391823270,1760886405670,1422.46745634,0.00024127,2]
[391823271,1760886457834,150.0,0.00021924,2]
[391823272,1760886458261,209.89,0.00023917,2]
[391823273,1760886503755,3055.24871064,0.00024116,2]
[391823274,1760886503777,8855.23738371,0.00024116,2]
[391823277,1760886525221,150.04902097,0.0002,2]
[391823278,1760886537925,150.0,0.0002192,2]
[391823279,1760886538354,200.72,0.00023912,2]
[391823281,1760886615460,150.0,0.00021916,2]
[391823282,1760886615874,191.8,0.00023908,2]
[391823319,1760886632145,-904.75360768,0.00024146,2]
[391823321,1760886632156,-328.41420808,0.00024146,2]
[391823323,1760886632166,-150.0,0.00024216,2]
[391823325,1760886632175,-270.04,0.00024498,10]
[391823327,1760886632185,-1200.0,0.00024806,2]
[391823329,1760886632194,-1233.16781576,0.00024807,2]
[391823331,1760886632204,-169.30726489,0.00024816,2]
[391823388,1760886637995,-3.19273511,0.00024816,2]
[391823390,1760886638005,-300.0,0.00024897,2]
[391823392,1760886638015,-300.0,0.00024897,2]
[391823394,1760886638025,-300.0,0.00024897,2]
[391823396,1760886638034,-1200.0,0.00024898,2]
[391823398,1760886638044,-3253.24810485,0.000249,2]
[391823400,1760886638054,-4707.81474973,0.000249,2]
[391823402,1760886638063,-245.19,0.00025205,7]
[391823404,1760886638072,-195.0,0.00025416,2]
[391823406,1760886638081,-287.7,0.000259,2]
[391823408,1760886638090,-183.67887766,0.00026055,2]
[391823410,1760886638099,-1212.67755653,0.00026217,2]
[391823412,1760886638109,-900.0,0.000263,2]
[391823414,1760886638118,-181.626505,0.00026676,2]
[391823415,1760886638128,-190.279197,0.00026869,2]
[391823417,1760886638137,-1200.0,0.00027,2]
[391823419,1760886638147,-1024.0,0.000273,3]
[391823421,1760886638157,-383.59,0.00027893,2]
[391823423,1760886638167,-208.4048862,0.00028714,2]
[391823424,1760886638176,-406.31,0.00028761,2]
[391823425,1760886638186,-330.6219798,0.00028861,2]
[391823426,1760886638196,-286.74162942,0.00029358,2]
[391823427,1760886638206,-160.0,0.00029856,2]
[391823428,1760886638215,-479.49,0.00029885,2]
[391823429,1760886638225,-499.99999999,0.00029999,2]
[391823430,1760886638235,-850.0,0.0003,60]
[391823431,1760886638245,-500.0,0.00030137,2]
[391823432,1760886638254,-500.0,0.00030137,2]
[391823433,1760886638264,-499.997,0.00030137,2]
[391823434,1760886638274,-587.77240852,0.00030265,2]
[391823435,1760886638283,-260.0,0.00030404,2]
[391823436,1760886638292,-150.0,0.00030493,7]
[391823437,1760886638302,-131.3257231,0.0003084,2]
[391823438,1760886638318,-368.6742769,0.0003084,2]
[391823439,1760886638329,-327.70471934,0.00030875,2]
[391823440,1760886638338,-360.0,0.00030952,2]
[391823441,1760886638348,-437.6648783,0.00031,120]
[391823442,1760886638358,-189.47816555,0.00031,120]
[391823443,1760886638367,-160.81536639,0.00031,120]
[391823444,1760886638377,-73.84689807,0.00031,120]
[391823445,1760886638389,-98.46093285,0.00031,120]
[391823446,1760886638398,-207.4260148,0.00031,120]
[391823447,1760886638408,-305.69370424,0.00031,120]
[391823448,1760886638417,-438.41934811,0.00031388,2]
[391823490,1760886640316,-65.47237367,0.00031388,2]
[391823491,1760886640326,-294.52038317,0.0003146,2]
[391823492,1760886640337,-80.2332832,0.0003146,2]
[391823493,1760886640348,-500.01486159,0.00031467,2]
[391823494,1760886640359,-500.0,0.00031467,5]
[391823495,1760886640369,-500.0,0.000315,5]
[391823496,1760886640378,-502.18676069,0.000315,5]
[391823497,1760886640387,-163.17306825,0.000315,2]
[391823498,1760886640396,-175.11511344,0.000315,2]
[391823499,1760886640406,-280.0,0.000315,2]
[391823500,1760886640415,-296.72930274,0.000316,5]
[391823501,1760886640425,-500.0,0.000316,5]
[391823502,1760886640434,-918.39438832,0.00031668,2]
[391823503,1760886640444,-503.44024806,0.00031731,5]
[391823504,1760886640454,-575.39,0.00031877,2]
[391823505,1760886640463,-437.6648783,0.000319,120]
[391823506,1760886640473,-189.47816555,0.000319,120]
[391823507,1760886640483,-172.30783092,0.000319,120]
[391823508,1760886640492,-207.4260148,0.000319,120]
[391823509,1760886640502,-305.69370424,0.000319,120]
[391823510,1760886640512,-199.1489166,0.000319,60]
[391823511,1760886640522,-164.14676582,0.000319,60]
[391823512,1760886640531,-151.52159412,0.000319,60]
[391823513,1760886640541,-152.73024621,0.000319,60]
[391823514,1760886640551,-151.0,0.000319,60]
[391823515,1760886640560,-151.0,0.000319,60]
[391823516,1760886640571,-151.0,0.000319,60]
[391823517,1760886640580,-151.0,0.000319,60]
[391823518,1760886640590,-152.25108244,0.000319,60]
[391823519,1760886640600,-151.38252694,0.000319,60]
[391823520,1760886640610,-500.0,0.000319,60]
[391823521,1760886640620,-151.0,0.000319,60]
[391823522,1760886640629,-152.08024911,0.000319,60]
[391823523,1760886640639,-151.24075468,0.000319,2]
[391823524,1760886640648,-151.0,0.000319,60]
[391823525,1760886640658,-151.0,0.000319,60]
[391823526,1760886640668,-151.0,0.000319,60]
[391823527,1760886640678,-298.34341736,0.00031949,2]
[391823528,1760886640687,-151.0,0.00031955,60]
[391823529,1760886640696,-151.0,0.00031955,60]
[391823530,1760886640707,-500.0,0.00031955,60]
[391823531,1760886640719,-151.0,0.00031955,60]
[391823532,1760886640729,-198.0,0.0003201,60]
[391823533,1760886640738,-151.0,0.0003201,60]
[391823534,1760886640749,-500.0,0.0003201,60]
[391823535,1760886640760,-198.19651247,0.0003201,60]
[391823536,1760886640769,-187.0,0.00032064,60]
[391823537,1760886640780,-500.0,0.00032064,60]
[391823538,1760886640789,-500.0,0.00032119,60]
[391823539,1760886640799,-1000.0,0.00032148,5]
[391823540,1760886640808,-500.0,0.00032174,60]
[391823541,1760886640818,-500.0,0.00032229,60]
[391823542,1760886640827,-500.0,0.00032284,60]
[391823543,1760886640837,-500.0,0.00032338,60]
[391823544,1760886640847,-512.03862396,0.00032392,2]
[391823545,1760886640856,-500.0,0.00032393,60]
[391823546,1760886640866,-500.0,0.00032448,60]
[391823547,1760886640877,-500.0,0.00032503,60]
[391823548,1760886640887,-500.0,0.00032558,60]
[391823549,1760886640897,-500.0,0.00032612,60]
[391823550,1760886640906,-500.0,0.00032667,60]
[391823551,1760886640915,-1500.0,0.00032696,5]
[391823552,1760886640925,-500.0,0.00032722,60]
[391823553,1760886640936,-500.0,0.00032777,60]
[391823554,1760886640946,-185.11920639,0.00032832,60]
[391823555,1760886640955,-437.6648783,0.000329,120]
[391823556,1760886640964,-172.30783092,0.000329,120]
[391823557,1760886640974,-305.69370424,0.000329,120]
[391823558,1760886640983,-181.626505,0.00033165,2]
[391823559,1760886640993,-500.0,0.00033244,5]
[391823560,1760886641003,-200.0,0.000334,120]
[391823561,1760886641012,-168.0,0.00033838,2]
[391823562,1760886641021,-671.29,0.0003387,2]
[391823563,1760886641031,-437.6648783,0.000339,120]
[391823564,1760886641041,-305.69370424,0.000339,120]
[391823565,1760886641050,-151.0,0.000339,60]
[391823566,1760886641059,-151.0,0.000339,60]
[391823567,1760886641068,-165.02581476,0.000339,60]
[391823568,1760886641078,-151.0,0.000339,60]
[391823569,1760886641087,-151.0,0.000339,60]
[391823570,1760886641096,-154.09359071,0.000339,60]
[391823571,1760886641106,-151.0,0.00033955,60]
[391823572,1760886641115,-151.0,0.00033955,60]
[391823573,1760886641124,-151.0,0.0003401,60]
[391823574,1760886641134,-151.0,0.0003401,60]
[391823575,1760886641143,-200.0,0.00034027,120]
[391823576,1760886641153,-198.0,0.00034064,60]
[391823577,1760886641164,-245.0,0.00034064,60]
[391823578,1760886641173,-160.0,0.0003414,2]
[391823579,1760886641183,-900.00489688,0.00034157,30]
[391823580,1760886641192,-296.0,0.00034158,7]
[391823581,1760886641202,-168.0,0.00034199,2]
[391823582,1760886641212,-168.0,0.00034231,2]
[391823583,1760886641221,-437.6648783,0.000349,120]
[391823584,1760886641231,-305.69370424,0.000349,120]
[391823585,1760886641242,-168.0,0.00035042,2]
[391823586,1760886641251,-495.0,0.00035216,120]
[391823587,1760886641261,-296.0,0.00035284,2]
[391823588,1760886641271,-494.0,0.00035325,2]
[391823589,1760886641280,-168.0,0.00035691,2]
[391823590,1760886641289,-211.53,0.00035859,3]
[391823591,1760886641299,-767.19,0.00035862,2]
[391823592,1760886641308,-974.62976642,0.00035864,2]
[391823593,1760886641318,-634.64,0.0003587,3]
[391823594,1760886641327,-423.06,0.0003588,3]
[391823595,1760886641337,-496.0,0.0003589,2]
[391823596,1760886641349,-846.13,0.00036123,3]
[391823597,1760886641359,-494.0,0.00036133,7]
[391823598,1760886641369,-494.0,0.00036363,2]
[391823599,1760886641379,-168.0,0.00036792,2]
[391823600,1760886641389,-265.6534441,0.00036822,30]
[391823601,1760886641398,-495.0,0.00036862,2]
[391823602,1760886641408,-494.0,0.00037106,7]
[391823603,1760886641418,-168.0,0.00037152,2]
[391823604,1760886641427,-411.0,0.000372,2]
[391823605,1760886641437,-423.06,0.00037229,3]
[391823606,1760886641446,-846.12,0.0003725,3]
[391823607,1760886641456,-168.0,0.00037292,2]
[391823608,1760886641466,-168.0,0.00037355,2]
[391823609,1760886641476,-619.7523152,0.00037368,15]
[391823610,1760886641486,-168.0,0.00037434,2]
[391823611,1760886641495,-494.0,0.00037459,120]
[391823612,1760886641505,-1692.26,0.00037493,3]
[391823613,1760886641516,-168.0,0.00037625,2]
[391823614,1760886641526,-168.0,0.0003775,2]
[391823615,1760886641536,-600.0,0.000378,7]
[391823616,1760886641545,-863.09,0.00037854,2]
[391823617,1760886641555,-494.0,0.00038028,2]
[391823618,1760886641565,-1052.7489003,0.00038256,2]
[391823619,1760886641575,-176.38349495,0.00038256,2]
[391823620,1760886641585,-1999.0,0.00038345,120]
[391823621,1760886641594,-500.50711057,0.00038356,2]
[391823622,1760886641604,-500.0,0.00038356,30]
[391823623,1760886641613,-500.0,0.00038356,30]
[391823624,1760886641623,-500.0,0.00038356,30]
[391823625,1760886641633,-500.0,0.00038356,30]
[391823626,1760886641643,-500.0,0.00038356,30]
[391823627,1760886641652,-500.07563961,0.00038356,30]
[391823628,1760886641662,-500.0,0.00038356,30]
[391823629,1760886641671,-500.0,0.00038356,30]
[391823630,1760886641680,-500.0,0.00038356,30]
[391823631,1760886641690,-500.0,0.00038356,30]
[391823632,1760886641699,-500.0,0.00038356,30]
[391823633,1760886641712,-500.0,0.00038356,30]
[391823634,1760886641722,-500.0,0.00038356,30]
[391823635,1760886641731,-500.0,0.00038356,30]
[391823636,1760886641741,-500.0,0.00038356,30]
[391823637,1760886641750,-500.0,0.00038356,30]
[391823638,1760886641760,-500.0,0.00038356,30]
[391823639,1760886641770,-500.0,0.00038356,30]
[391823640,1760886641779,-500.0,0.00038356,30]
[391823641,1760886641789,-500.0,0.00038356,30]
[391823642,1760886641799,-500.0,0.00038356,30]
[391823643,1760886641808,-500.0,0.00038356,30]
[391823644,1760886641818,-500.0,0.00038356,30]
[391823645,1760886641827,-500.0,0.00038356,30]
[391823646,1760886641836,-500.0,0.00038356,30]
[391823647,1760886641845,-500.0,0.00038356,30]
[391823648,1760886641855,-500.0,0.00038356,30]
[391823649,1760886641864,-500.0,0.00038356,30]
[391823650,1760886641873,-500.0,0.00038356,30]
[391823651,1760886641883,-500.0,0.00038356,30]
[391823652,1760886641892,-188.39929041,0.00038356,30]
[391823653,1760886641902,-500.0,0.00038356,30]
[391823654,1760886641911,-500.0,0.00038356,30]
[391823655,1760886641920,-500.0,0.00038356,30]
[391823656,1760886641930,-500.0,0.00038356,30]
[391823657,1760886641939,-500.0,0.00038356,30]
[391823658,1760886641948,-500.0,0.00038356,30]